[Event "DVM U10 2024"]
[Site "Duesseldorf"]
[Date "2024.12.27"]
[Round "2"]
[White "Pukshansky, Mikhail B"]
[Black "Wang, Hanyu"]
[Result "0-1"]
[ECO "C44"]
[WhiteElo "2405"]
[BlackElo "1606"]
[Annotator "TA"]
[PlyCount "70"]
[EventDate "2024.12.23"]
[EventType "team-tourn"]
[EventRounds "7"]
[EventCountry "GER"]
[SourceTitle "playchess.com"]
[Source "ChessBase"]
[SourceQuality "1"]
[TimeControl "3300+5"]

{[%evp 9,70,-22,58,79,489,189,202,206,204,97,85,67,79,-385,-385,-400,-397,-437,-348,-434,-425,-572,-548,-637,-607,-823,-764,-804,-783,-918,-936,-930,-922,-2094,-1779,-2285,-2252,-29986,-29987,-29987,-29988,-29987,-1833,-29991,-29991,-29991,-11715,-29994,-29995,-29996,-29996,-29996,-29996,-29996,-29995,-29996,-29997,-29997,-29998,-29998,-29999,-29999,-687]} 1. e4 {[%emt 0:00:02]} e5 {[%emt 0:00:06]} 2. Nf3 {[%emt 0:00:09]} Nc6 {[%emt 0:00:08]} 3. Bc4 {[%emt 0:00:07]} Bc5 {[%emt 0:00:06]} 4. d4 {[%emt 0:00:17]} exd4 {[%emt 0:00:05]} 5. Ng5 {[%emt 0:00:10] [#]} d5 $1 {[%emt 0:00:45]} 6. Bxd5 $14 {[%emt 0:00:12]} Be6 $2 {[%emt 0:00:19][%mdl 8192]} 7. Bxe6 $2 {[%emt 0:00:06]} ({Much less strong is} 7. Nxe6 Bb4+ 8. c3 fxe6 9. Bxc6+ (9. Bxe6 Qe7 $18) 9... bxc6 10. cxb4 Ne7) (7. Bxc6+ bxc6 8. Nxe6 Bb4+ 9. c3 dxc3 10. Qxd8+ (10. Nxd8 $2 cxb2+ 11. Nd2 bxa1=Q $17) 10... Rxd8 11. Nxc7+ (11. bxc3 fxe6 12. cxb4 c5 $18) 11... Kd7 12. bxc3) 7... fxe6 $18 {[%emt 0:00:03]} 8. Nxe6 {[%emt 0:00:18]} Qe7 {[%emt 0:00:09]} 9. Nxc5 {[%emt 0:00:12]} (9. Nxc7+ $18 Qxc7 10. Qh5+ Qf7 11. Qxc5) 9... Qxc5 $16 {[%emt 0:00:07]} 10. O-O {[%emt 0:00:54]} O-O-O {[%emt 0:00:03] [#]} 11. Bg5 $2 {[%emt 0:00:26][%mdl 8192]} Qxg5 $19 {[%emt 0:00:21]} 12. f4 {[%emt 0:00:25]} Qe7 {[%emt 0:00:22]} 13. e5 {[%emt 0:00:43]} g6 {[%emt 0:00:29]} 14. Re1 {[%emt 0:00:49]} Nh6 {[%emt 0:00:09]} 15. e6 {[%emt 0:00:53]} Rhf8 16. g3 {[%emt 0:00:23]} Rf6 {[%emt 0:00:27]} 17. Re2 {[%emt 0:00:36]} Rxe6 18. Rxe6 {[%emt 0:00:12]} Qxe6 {[%emt 0:00:11]} 19. Na3 {[%emt 0:00:16]} Qe3+ {[%emt 0:00:41]} 20. Kg2 {[%emt 0:00:53]} d3 {Strongly threatening ...dxc2.} 21. Nc4 {[%emt 0:01:05]} Qe4+ 22. Kf2 {[%emt 0:00:10]} Qxc4 {[%emt 0:00:30]} 23. cxd3 {[%emt 0:00:06]} Rxd3 {[%emt 0:00:07]} 24. Qe2 {[%emt 0:00:52]} Qd4+ {[%emt 0:00:34]} 25. Kf1 {[%emt 0:00:56]} b6 (25... Rd2 $142 26. Qf3 Qc4+ (26... Rxb2 $2 27. Rc1 $19) 27. Kg1 Qc5+ (27... Rxb2 $2 28. Rd1 $19) 28. Kh1 Nd4 (28... Rxb2 $2 29. Rf1 $19) 29. Qe4 Re2 (29... Rxb2 30. Qe8#) 30. b4 Qh5 (30... Qxb4 $2 31. Rb1 $19) (30... Rxe4 31. bxc5 Re2 32. Re1 Rxe1+ 33. Kg2 Ng4 34. Kh3 h5 35. Kg2 Re2+ 36. Kf1 Ne3+ 37. Kg1 Nf3+ 38. Kh1 Rxh2#) 31. Qxe2 Qxe2 32. Re1 Qxe1+ 33. Kg2 Qe2+ (33... Qxb4 {is a self mate.} 34. Kh3 Qa3 35. f5 Qf3 36. fxg6 Ndf5 37. gxh7 Qf1#) 34. Kh3 Qf1+ 35. Kh4 Nf3#) 26. b3 {[%emt 0:03:36]} Qxa1+ 27. Kf2 {[%emt 0:00:05]} Qd1 (27... Qd4+ $142 28. Kf1 Rd1+ 29. Kg2 Rd2 30. Kf1 Rxe2 31. Kxe2 Ng4 32. h3 Qe3+ 33. Kd1 Nd4 34. hxg4 Qe2+ 35. Kc1 Qc2#) 28. Qe8+ {[%emt 0:00:05]} Kb7 29. Qe2 {[%emt 0:00:05]} Rd2 {[%emt 0:00:45]} 30. Qxd2 {[%emt 0:00:05]} Qxd2+ {[%emt 0:00:05]} 31. Kf3 {[%emt 0:00:19]} Qe1 {[%emt 0:00:19]} 32. h3 {[%emt 0:00:05]} Nd4+ {[%emt 0:00:05]} 33. Kg2 {[%emt 0:01:23]} Qe2+ {[%emt 0:00:28]} 34. Kg1 Nf3+ 35. Kh1 Qg2+ 0-1

[Event "DVM U10 2024"]
[Site "Duesseldorf"]
[Date "2024.12.27"]
[Round "2"]
[White "Jiang, Lucas"]
[Black "Sander, Bela"]
[Result "1-0"]
[ECO "C54"]
[WhiteElo "2261"]
[BlackElo "1117"]
[Annotator "RC"]
[PlyCount "73"]
[EventDate "2024.12.23"]
[EventType "team-tourn"]
[EventRounds "7"]
[EventCountry "GER"]
[SourceTitle "playchess.com"]
[Source "ChessBase"]
[SourceQuality "1"]
[TimeControl "3300+5"]

1. e4 {[%emt 0:00:01]} e5 {[%emt 0:00:06]} 2. Nf3 {[%emt 0:00:09]} Nc6 {[%emt 0:00:08]} 3. Bc4 {[%emt 0:00:10]} Bc5 {[%emt 0:00:08]} 4. c3 {[%emt 0:00:06]} Nf6 {[%emt 0:00:09]} 5. d3 {[%emt 0:00:11]} d6 {[%emt 0:00:23]} 6. Bg5 {[%emt 0:00:12]} h6 {[%emt 0:00:39]} 7. Bh4 {[%emt 0:00:06]} Bg4 {[%emt 0:00:18]} 8. h3 {[%emt 0:00:22]} Bh5 {[%emt 0:00:21]} 9. Nbd2 {[%emt 0:00:07]} Qe7 {[%emt 0:00:35]} 10. O-O {[%emt 0:00:16]} O-O-O {[%emt 0:00:37]} 11. Qb3 {[%emt 0:01:19]} g5 {[%emt 0:00:46]} 12. Bg3 {[%emt 0:00:18]} Rdf8 {[%emt 0:01:29]} 13. Bb5 {[%emt 0:01:21]} Qd7 {[%emt 0:01:02]} 14. d4 {[%emt 0:00:41]} exd4 {[%emt 0:02:42]} 15. cxd4 {[%emt 0:00:08]} Bb6 {[%emt 0:00:51]} 16. d5 {[%emt 0:00:14]} Bxf3 17. Qxf3 {[%emt 0:00:41]} Nh7 {[%emt 0:02:21]} 18. dxc6 {[%emt 0:00:21]} bxc6 {[%emt 0:00:16]} 19. Bd3 {[%emt 0:00:27]} Kb7 {[%emt 0:01:04]} 20. Nc4 {[%emt 0:00:23]} Bc5 {[%emt 0:00:53]} 21. e5 {[%emt 0:00:30]} h5 {[%emt 0:01:54]} 22. exd6 {[%emt 0:00:25]} cxd6 {[%emt 0:00:18]} 23. Be4 {[%emt 0:00:32]} d5 {[%emt 0:00:25]} 24. Bxh7 {[%emt 0:00:35]} Rxh7 {[%emt 0:00:13]} 25. Qb3+ {[%emt 0:00:10]} Ka8 {[%emt 0:01:01]} 26. Ne5 {[%emt 0:00:19]} Qe6 {[%emt 0:01:38]} 27. Rfe1 {[%emt 0:00:43]} Bb6 {[%emt 0:01:46]} 28. Nf3 {[%emt 0:00:56]} Qf5 {[%emt 0:01:27]} 29. Re5 {[%emt 0:00:23]} Qd7 {[%emt 0:01:08]} 30. Rxg5 {[%emt 0:00:47]} f5 {[%emt 0:01:27]} 31. Rg6 {[%emt 0:00:50]} Rg7 {[%emt 0:00:27]} 32. Ne5 {[%emt 0:00:25]} Qb7 {[%emt 0:02:34]} 33. Rxg7 {[%emt 0:00:44]} Qxg7 {[%emt 0:00:13]} 34. Nxc6 {[%emt 0:00:14]} Rg8 {[%emt 0:00:44]} 35. Qxd5 {[%emt 0:02:38]} Qxg3 {[%emt 0:03:26]} 36. Nd8+ {[%emt 0:00:29]} Kb8 {[%emt 0:00:38]} 37. Qb7# {[%emt 0:00:03]} 1-0

[Event "DVM U10 2024"]
[Site "Duesseldorf"]
[Date "2024.12.27"]
[Round "2"]
[White "Schmidt, Fabian"]
[Black "Obermeier, Vitus"]
[Result "1-0"]
[ECO "C01"]
[WhiteElo "1971"]
[BlackElo "982"]
[Annotator "RC"]
[PlyCount "99"]
[EventDate "2024.12.23"]
[EventType "team-tourn"]
[EventRounds "7"]
[EventCountry "GER"]
[SourceTitle "playchess.com"]
[Source "ChessBase"]
[SourceQuality "1"]
[TimeControl "3300+5"]

1. e4 {[%emt 0:00:02]} e6 {[%emt 0:00:05]} 2. Nf3 {[%emt 0:00:03]} Nc6 {[%emt 0:00:11]} 3. d4 {[%emt 0:00:07]} d5 {[%emt 0:00:06]} 4. exd5 {[%emt 0:00:21]} exd5 {[%emt 0:00:27]} 5. Bb5 {[%emt 0:00:09]} Qe7+ {[%emt 0:00:37]} 6. Be3 {[%emt 0:00:09]} Qb4+ {[%emt 0:00:59]} 7. Nc3 {[%emt 0:00:03]} Qxb2 {[%emt 0:00:36]} 8. Nxd5 {[%emt 0:01:32]} Bd6 {[%emt 0:01:09]} 9. Rb1 {[%emt 0:00:49]} Qxa2 {[%emt 0:00:20]} 10. Nc3 {[%emt 0:00:21]} Qa5 {[%emt 0:01:40]} 11. Bd2 {[%emt 0:02:27]} Nf6 {[%emt 0:00:29]} 12. d5 {[%emt 0:01:07]} Qb6 {[%emt 0:01:11]} 13. Bxc6+ {[%emt 0:00:03]} bxc6 {[%emt 0:00:17]} 14. Rxb6 {[%emt 0:00:03]} axb6 {[%emt 0:00:25]} 15. dxc6 {[%emt 0:00:24]} Ba6 {[%emt 0:00:36]} 16. Ne2 {[%emt 0:00:34]} O-O {[%emt 0:00:20]} 17. O-O {[%emt 0:00:13]} Rae8 {[%emt 0:00:08]} 18. Re1 {[%emt 0:00:15]} Ne4 {[%emt 0:01:10]} 19. Nc3 {[%emt 0:01:00]} Nxc3 {[%emt 0:02:09]} 20. Rxe8 {[%emt 0:00:18]} Rxe8 {[%emt 0:00:22]} 21. Bxc3 {[%emt 0:00:12]} Rd8 {[%emt 0:00:11]} 22. Qa1 {[%emt 0:00:44]} Be2 {[%emt 0:00:32]} 23. Bxg7 {[%emt 0:00:25]} Be5 {[%emt 0:00:27]} 24. Bxe5 {[%emt 0:01:30]} Rd1+ {[%emt 0:00:09]} 25. Qxd1 {[%emt 0:00:04]} Bxd1 {[%emt 0:00:08]} 26. Bxc7 {[%emt 0:00:11]} Bxc2 {[%emt 0:00:20]} 27. Bxb6 {[%emt 0:00:10]} Bf5 {[%emt 0:00:34]} 28. Ne5 {[%emt 0:00:43]} Bc8 {[%emt 0:00:29]} 29. c7 {[%emt 0:00:20]} Kf8 {[%emt 0:00:04]} 30. Nc6 {[%emt 0:00:10]} Ke8 {[%emt 0:00:43]} 31. Na7 {[%emt 0:00:03]} Kd7 {[%emt 0:00:59]} 32. Nxc8 {[%emt 0:00:35]} Kxc8 {[%emt 0:00:14]} 33. Kf1 {[%emt 0:00:00]} Kb7 {[%emt 0:00:25]} 34. Ke2 {[%emt 0:00:02]} f5 {[%emt 0:00:20]} 35. Kd3 {[%emt 0:00:14]} f4 {[%emt 0:00:21]} 36. Kd4 {[%emt 0:00:05]} h5 {[%emt 0:00:26]} 37. Kd5 {[%emt 0:00:09]} h4 {[%emt 0:00:26]} 38. Ke4 {[%emt 0:00:12]} Kc8 {[%emt 0:00:25]} 39. Kd5 {[%emt 0:00:04]} f3 {[%emt 0:00:20]} 40. gxf3 {[%emt 0:00:03]} Kd7 {[%emt 0:00:17]} 41. Kc5 {[%emt 0:00:15]} h3 {[%emt 0:00:36]} 42. Kd5 {[%emt 0:00:08]} Kc8 {[%emt 0:00:14]} 43. Ke6 {[%emt 0:00:15]} Kb7 {[%emt 0:00:26]} 44. Kd7 {[%emt 0:00:04]} Kxb6 {[%emt 0:00:21]} 45. c8=Q {[%emt 0:00:05]} Ka7 {[%emt 0:00:25]} 46. Qc7+ {[%emt 0:00:32]} Ka8 {[%emt 0:00:29]} 47. Qa5+ {[%emt 0:00:10]} Kb7 {[%emt 0:00:14]} 48. Qb5+ {[%emt 0:00:08]} Ka7 {[%emt 0:00:39]} 49. Kc7 {[%emt 0:00:06]} Ka8 {[%emt 0:00:06]} 50. Qa4# {[%emt 0:00:08]} 1-0

[Event "DVM U10 2024"]
[Site "Duesseldorf"]
[Date "2024.12.27"]
[Round "2"]
[White "Boeskov, Steffen"]
[Black "Kutschenreuter, Leo"]
[Result "1-0"]
[ECO "B07"]
[WhiteElo "1933"]
[BlackElo "1085"]
[Annotator "NA RC"]
[PlyCount "117"]
[EventDate "2024.12.23"]
[EventType "team-tourn"]
[EventRounds "7"]
[EventCountry "GER"]
[SourceTitle "playchess.com"]
[Source "ChessBase"]
[SourceQuality "1"]
[TimeControl "3300+5"]

1. e4 {[%emt 0:00:02]} d6 {[%emt 0:00:08]} 2. Qf3 {[%emt 0:00:51]} Nf6 {[%emt 0:00:20]} 3. Nc3 {[%emt 0:00:17]} Bg4 {[%emt 0:00:27]} 4. Qg3 {[%emt 0:00:32]} Nc6 {[%emt 0:01:04]} 5. Nf3 {[%emt 0:00:27]} e5 {[%emt 0:00:28]} 6. Bb5 {[%emt 0:00:25] B07: Pirc Defence: Miscellaneous Systems.} a6 {[%emt 0:00:19]} 7. Bxc6+ {[%emt 0:00:33]} bxc6 {[%emt 0:00:14]} 8. h3 {[%emt 0:00:32]} Be6 {[%emt 0:00:54]} 9. Ng5 {[%emt 0:00:14]} Nh5 {[%emt 0:02:01]} 10. Qh4 {[%emt 0:00:46]} Nf4 {[%emt 0:00:45]} 11. Qg3 {[%emt 0:01:17]} Rb8 {[%emt 0:02:17]} 12. Nxe6 {[%emt 0:01:11]} fxe6 {[%emt 0:00:48]} 13. O-O {[%emt 0:00:53]} Rb5 {[%emt 0:00:54]} 14. d3 {[%emt 0:00:37]} d5 {[%emt 0:00:09]} 15. Bxf4 {[%emt 0:00:30]} exf4 {[%emt 0:00:24]} 16. Qg4 {[%emt 0:00:23]} Rxb2 {[%emt 0:00:34]} 17. Qxe6+ {[%emt 0:00:34]} Qe7 {[%emt 0:00:09]} 18. Qxc6+ {[%emt 0:01:04]} Qd7 {[%emt 0:00:30]} 19. Qa8+ {[%emt 0:00:29]} Kf7 {[%emt 0:00:24]} 20. Nxd5 {[%emt 0:00:22]} Kg8 {[%emt 0:01:11]} 21. Nxf4 {[%emt 0:00:44]} Rxc2 {[%emt 0:00:17]} 22. Qxa6 {[%emt 0:00:52]} Bc5 {[%emt 0:01:34]} 23. Qa8+ {[%emt 0:00:59]} Bf8 {[%emt 0:00:41]} 24. Nd5 {[%emt 0:00:31]} h6 {[%emt 0:00:34]} 25. Rac1 {[%emt 0:00:14]} Rxc1 {[%emt 0:01:05]} 26. Rxc1 {[%emt 0:02:19]} Kh7 {[%emt 0:00:34]} 27. Rxc7 {[%emt 0:00:24]} Qb5 {[%emt 0:00:34]} 28. Rc8 {[%emt 0:01:27]} Qb1+ {[%emt 0:00:56]} 29. Kh2 {[%emt 0:00:20]} Bd6+ {[%emt 0:00:18]} 30. g3 {[%emt 0:00:28]} Rxc8 {[%emt 0:00:08]} 31. Qxc8 {[%emt 0:00:57]} Qxa2 {[%emt 0:00:47]} 32. Qf5+ {[%emt 0:01:47]} Kg8 {[%emt 0:00:51]} 33. Qe6+ {[%emt 0:00:37]} Kh7 {[%emt 0:00:30]} 34. Qxd6 {[%emt 0:00:19]} Qxf2+ {[%emt 0:00:13]} 35. Kh1 {[%emt 0:00:19]} Qf1+ {[%emt 0:00:27]} 36. Kh2 {[%emt 0:00:14]} Qe2+ {[%emt 0:01:02]} 37. Kg1 {[%emt 0:00:31]} Qe1+ {[%emt 0:00:19]} 38. Kg2 {[%emt 0:00:50]} Qd2+ {[%emt 0:00:34]} 39. Kf3 {[%emt 0:00:23]} Qxd3+ {[%emt 0:00:15]} 40. Kg4 {[%emt 0:00:20]} Qxe4+ {[%emt 0:00:17]} 41. Nf4 {[%emt 0:00:35]} h5+ {[%emt 0:01:04]} 42. Kxh5 {[%emt 0:00:31]} Qf5+ {[%emt 0:14:08]} 43. Kh4 {[%emt 0:05:19]} Qf6+ {[%emt 0:00:00]} 44. Qxf6 {[%emt 0:00:29]} gxf6 {[%emt 0:00:00]} 45. g4 {[%emt 0:00:14]} Kh6 {[%emt 0:00:00]} 46. Ne6 {[%emt 0:01:16]} Kg6 {[%emt 0:00:00]} 47. g5 {[%emt 0:00:21]} f5 {[%emt 0:00:00]} 48. Kg3 {[%emt 0:00:16]} Kf7 {[%emt 0:00:00]} 49. Nd8+ {[%emt 0:00:45]} Kg6 {[%emt 0:00:00]} 50. Kf4 {[%emt 0:00:20]} Kh7 {[%emt 0:00:00]} 51. Kxf5 {[%emt 0:00:27]} Kg7 {[%emt 0:00:00]} 52. Ne6+ {[%emt 0:00:15]} Kh7 {[%emt 0:00:00]} 53. g6+ {[%emt 0:00:07]} Kg8 {[%emt 0:00:00]} 54. Kf6 {[%emt 0:00:21]} Kh8 {[%emt 0:00:00]} 55. g7+ {[%emt 0:00:33]} Kg8 {[%emt 0:00:00]} 56. Ke7 {[%emt 0:00:18]} Kh7 {[%emt 0:00:00]} 57. Kf7 {[%emt 0:00:27]} Kh6 {[%emt 0:00:00]} 58. g8=Q {[%emt 0:00:22]} Kh5 {[%emt 0:00:00]} 59. Qg5# {[%emt 0:00:19]} 1-0

[Event "DVM U10 2024"]
[Site "Duesseldorf"]
[Date "2024.12.27"]
[Round "2"]
[White "Pereira, Jefferson Luis de S."]
[Black "Sachse, Alina"]
[Result "1-0"]
[ECO "C46"]
[WhiteElo "1932"]
[BlackElo "848"]
[Annotator "NA RC"]
[PlyCount "173"]
[EventDate "2024.12.23"]
[EventType "team-tourn"]
[EventRounds "7"]
[EventCountry "GER"]
[SourceTitle "playchess.com"]
[Source "ChessBase"]
[SourceQuality "1"]
[TimeControl "3300+5"]

1. e4 {[%emt 0:00:04]} e5 {[%emt 0:00:07]} 2. Nf3 {[%emt 0:00:05]} Nc6 {[%emt 0:00:16]} 3. Nc3 {[%emt 0:00:05]} Bc5 {[%emt 0:00:17]} 4. Nxe5 {[%emt 0:00:19]} Nxe5 {[%emt 0:00:10]} 5. d4 {[%emt 0:00:08]} Bd6 {[%emt 0:00:15]} 6. dxe5 {[%emt 0:00:14]} Bxe5 {[%emt 0:00:09]} 7. Bc4 {[%emt 0:01:13] 7.Bd3 deserves study.} f5 $146 {[%emt 0:00:15] C46: 3 Nc3: Unusual Black 3rd moves.} ({Predecessor:} 7... Nf6 8. O-O O-O 9. f3 c6 10. Bd3 d5 11. exd5 Nxd5 12. Nxd5 Qxd5 13. c3 Rd8 14. Qe2 Bxh2+ 15. Kxh2 Qxd3 16. Qxd3 Rxd3 {0-1 Naroditsky,D (2619)-Nakamura,H (2787) Bullet Chess Winners blitz 2023 (3.10)}) 8. Qe2 {[%emt 0:00:19]} Nf6 {[%emt 0:00:10]} 9. exf5 {[%emt 0:00:27]} d6 {[%emt 0:00:34]} 10. Bb5+ {[%emt 0:00:49]} Bd7 {[%emt 0:00:14]} 11. Bxd7+ {[%emt 0:00:07]} Qxd7 {[%emt 0:00:14]} 12. O-O {[%emt 0:00:12]} O-O-O {[%emt 0:00:09]} 13. Ne4 {[%emt 0:01:23]} Nd5 {[%emt 0:00:57]} 14. Qc4 {[%emt 0:01:05]} Nb6 {[%emt 0:00:26]} 15. Qb4 {[%emt 0:03:22]} Qc6 {[%emt 0:00:23]} 16. Be3 {[%emt 0:01:36]} d5 {[%emt 0:00:27]} 17. Nc5 {[%emt 0:00:39]} Bd6 {[%emt 0:00:36]} 18. Qc3 {[%emt 0:02:05]} Nc4 {[%emt 0:00:29]} 19. Ne6 {[%emt 0:01:04]} Rde8 {[%emt 0:00:29]} 20. Nxg7 {[%emt 0:01:01]} Reg8 {[%emt 0:00:36]} 21. Rae1 {[%emt 0:01:18]} Qd7 {[%emt 0:00:36]} 22. Bd4 {[%emt 0:00:27]} Qf7 {[%emt 0:00:26]} 23. f6 {[%emt 0:00:34]} Qg6 {[%emt 0:02:10]} 24. Qb3 {[%emt 0:02:43]} Qg4 {[%emt 0:00:35]} 25. Ne6 {[%emt 0:01:50]} Qh4 {[%emt 0:00:40]} 26. g3 {[%emt 0:01:21]} Qh3 {[%emt 0:00:31]} 27. Re3 {[%emt 0:00:49]} Rg6 {[%emt 0:00:32]} 28. Nf4 {[%emt 0:00:42]} Bxf4 {[%emt 0:00:19]} 29. f7 {[%emt 0:01:58]} Rf8 {[%emt 0:00:14]} 30. Re8+ {[%emt 0:00:41]} Kd7 {[%emt 0:00:41]} 31. Qb5+ {[%emt 0:00:11]} c6 {[%emt 0:00:15]} 32. Qxb7+ {[%emt 0:00:41]} Bc7 {[%emt 0:01:53]} 33. Qc8+ {[%emt 0:01:10]} Kd6 {[%emt 0:02:39]} 34. Qxh3 {[%emt 0:02:14]} Rxf7 {[%emt 0:00:43]} 35. Rfe1 {[%emt 0:02:23]} Ba5 {[%emt 0:01:04]} 36. R1e6+ {[%emt 0:00:28]} Kc7 {[%emt 0:02:56]} 37. Rxg6 {[%emt 0:02:10]} hxg6 {[%emt 0:00:12]} 38. Qc8+ {[%emt 0:00:29]} Kd6 {[%emt 0:00:22]} 39. Qe6+ {[%emt 0:00:30]} Kc7 {[%emt 0:00:29]} 40. Bc5 {[%emt 0:00:25]} Rd7 {[%emt 0:01:02]} 41. Qxg6 {[%emt 0:01:06]} Bb6 {[%emt 0:00:28]} 42. Bxb6+ {[%emt 0:00:24]} Kxb6 {[%emt 0:00:18]} 43. Qf6 {[%emt 0:01:14]} Nd6 {[%emt 0:00:33]} 44. Re7 {[%emt 0:00:45]} Rd8 {[%emt 0:00:38]} 45. Qh4 {[%emt 0:01:30]} Rb8 {[%emt 0:01:07]} 46. Qh6 {[%emt 0:00:34]} Rd8 {[%emt 0:00:19]} 47. Rh7 {[%emt 0:00:27]} Nf5 {[%emt 0:00:55]} 48. Qf6 {[%emt 0:00:24]} Nd6 {[%emt 0:00:39]} 49. Rh8 {[%emt 0:00:07]} Rxh8 {[%emt 0:01:12]} 50. Qxh8 {[%emt 0:01:34]} Kc5 {[%emt 0:00:16]} 51. h4 {[%emt 0:00:08]} d4 {[%emt 0:00:23]} 52. h5 {[%emt 0:00:05]} Nf7 {[%emt 0:00:25]} 53. Qf6 {[%emt 0:00:22]} Nd6 {[%emt 0:00:19]} 54. h6 {[%emt 0:00:05]} Ne8 {[%emt 0:00:52]} 55. Qg6 {[%emt 0:00:15]} Nd6 {[%emt 0:00:59]} 56. h7 {[%emt 0:00:06]} a5 {[%emt 0:02:18]} 57. h8=R {[%emt 0:00:13]} Kc4 {[%emt 0:00:52]} 58. Qg4 {[%emt 0:00:05]} a4 {[%emt 0:01:06]} 59. Rh4 {[%emt 0:00:10]} a3 {[%emt 0:00:33]} 60. Qxd4+ {[%emt 0:00:15]} Kb5 {[%emt 0:00:27]} 61. Qb4+ {[%emt 0:00:12]} Ka6 {[%emt 0:00:22]} 62. Qa4+ {[%emt 0:00:16]} Kb7 {[%emt 0:00:33]} 63. Rh7+ {[%emt 0:00:09]} Kb6 {[%emt 0:00:15]} 64. Qa7+ {[%emt 0:00:12]} Kb5 {[%emt 0:00:12]} 65. Rh5+ {[%emt 0:00:27]} Kc4 {[%emt 0:00:25]} 66. b3+ {[%emt 0:00:13]} Kc3 {[%emt 0:00:18]} 67. Qc5+ {[%emt 0:00:23]} Kd2 {[%emt 0:00:25]} 68. Qe3+ {[%emt 0:00:08]} Kd1 {[%emt 0:00:25]} 69. Kf1 {[%emt 0:00:19]} Nf5 {[%emt 0:01:36]} 70. Qe2+ {[%emt 0:00:13]} Kc1 {[%emt 0:00:20]} 71. Kg2 {[%emt 0:00:28]} Kb2 {[%emt 0:00:26]} 72. Rh1 {[%emt 0:00:07]} Kxa2 {[%emt 0:00:40]} 73. Qe1 {[%emt 0:00:08]} Ne3+ 74. fxe3 {[%emt 0:00:13]} Kb2 {[%emt 0:01:09]} 75. c3 {[%emt 0:00:19]} Kxb3 {[%emt 0:00:22]} 76. Qb1+ {[%emt 0:00:11]} Kxc3 {[%emt 0:00:13]} 77. Rc1+ {[%emt 0:00:07]} Kd2 {[%emt 0:00:42]} 78. Qc2+ {[%emt 0:00:09]} Kxe3 {[%emt 0:00:16]} 79. Re1+ {[%emt 0:00:12]} Kd4 {[%emt 0:00:17]} 80. Qd2+ {[%emt 0:00:11]} Kc5 {[%emt 0:00:22]} 81. Rc1+ {[%emt 0:00:15]} Kb6 {[%emt 0:00:17]} 82. Qb4+ {[%emt 0:00:08]} Kc7 {[%emt 0:00:15]} 83. Qc5 {[%emt 0:00:04]} Kd7 {[%emt 0:00:26]} 84. Qxc6+ {[%emt 0:00:10]} Ke7 {[%emt 0:00:15]} 85. Rb1 {[%emt 0:00:12]} Kf7 {[%emt 0:01:25]} 86. Rb7+ {[%emt 0:00:06]} Kf8 {[%emt 0:00:16]} 87. Qc8# {[%emt 0:00:04]} 1-0

[Event "DVM U10 2024"]
[Site "Duesseldorf"]
[Date "2024.12.27"]
[Round "2"]
[White "Hahn, David"]
[Black "Odbayar, Ekhbayar"]
[Result "1-0"]
[ECO "A40"]
[WhiteElo "1887"]
[BlackElo "864"]
[Annotator "NA RC"]
[PlyCount "77"]
[EventDate "2024.12.23"]
[EventType "team-tourn"]
[EventRounds "7"]
[EventCountry "GER"]
[SourceTitle "playchess.com"]
[Source "ChessBase"]
[SourceQuality "1"]
[TimeControl "3300+5"]

1. d4 {[%emt 0:00:01]} Nc6 {[%emt 0:00:03]} 2. Nc3 {[%emt 0:00:10]} Nxd4 {[%emt 0:01:08]} 3. Qxd4 {[%emt 0:00:01]} d6 {[%emt 0:00:20]} 4. Bf4 {[%emt 0:00:09]} e5 {[%emt 0:00:12]} 5. Qd1 {[%emt 0:00:08]} exf4 {[%emt 0:00:01]} 6. e3 {[%emt 0:00:54]} fxe3 {[%emt 0:00:09]} 7. Qe2 {[%emt 0:00:23]} Qe7 {[%emt 0:00:35]} 8. O-O-O {[%emt 0:00:17]} exf2 {[%emt 0:00:12]} 9. Qxe7+ {[%emt 0:00:24]} Bxe7 {[%emt 0:00:01]} 10. Nf3 {[%emt 0:00:24]} Bg4 {[%emt 0:00:10]} 11. Bb5+ {[%emt 0:00:22]} c6 {[%emt 0:00:10]} 12. Be2 {[%emt 0:00:08]} Bxf3 {[%emt 0:00:07]} 13. gxf3 {[%emt 0:00:28]} O-O-O {[%emt 0:12:57]} 14. Kb1 {[%emt 0:00:24]} d5 {[%emt 0:00:00]} 15. f4 {[%emt 0:00:34]} g5 {[%emt 0:00:00]} 16. Bg4+ {[%emt 0:00:31]} Kb8 {[%emt 0:00:00]} 17. fxg5 {[%emt 0:00:14]} Bxg5 {[%emt 0:00:00]} 18. Rhf1 {[%emt 0:00:19]} Be3 {[%emt 0:00:00]} 19. Rd3 {[%emt 0:00:15]} Bc5 {[%emt 0:00:00]} 20. Na4 {[%emt 0:00:38]} Bb6 {[%emt 0:00:00]} 21. Nxb6 {[%emt 0:00:14]} axb6 {[%emt 0:00:00]} 22. Rxf2 {[%emt 0:00:09]} Nh6 {[%emt 0:00:00]} 23. Bh3 {[%emt 0:00:59]} Rhg8 {[%emt 0:00:00]} 24. a3 {[%emt 0:00:17]} Rg1+ {[%emt 0:00:00]} 25. Ka2 {[%emt 0:00:08]} Re8 {[%emt 0:00:12]} 26. Rf6 {[%emt 0:00:41]} Ng4 {[%emt 0:00:36]} 27. Bxg4 {[%emt 0:00:17]} Rxg4 {[%emt 0:00:23]} 28. Rxf7 {[%emt 0:00:05]} h5 {[%emt 0:00:36]} 29. Rdf3 {[%emt 0:00:37]} Rh4 {[%emt 0:00:33]} 30. Rg3 {[%emt 0:00:46]} Rxh2 {[%emt 0:00:28]} 31. Rgg7 {[%emt 0:00:05]} Ka7 {[%emt 0:01:23]} 32. Rxb7+ {[%emt 0:00:15]} Ka6 {[%emt 0:00:54]} 33. a4 {[%emt 0:00:19]} Ra8 {[%emt 0:00:25]} 34. Ka3 {[%emt 0:00:21]} Rxc2 {[%emt 0:00:38]} 35. Rbc7 {[%emt 0:00:41]} h4 {[%emt 0:00:45]} 36. b4 {[%emt 0:01:00]} h3 {[%emt 0:01:08]} 37. b5+ {[%emt 0:00:09]} Ka5 {[%emt 0:00:01]} 38. Ra7+ {[%emt 0:00:23]} Rxa7 {[%emt 0:00:51]} 39. Rxa7# {[%emt 0:00:08]} 1-0